bitfinex/quotes_ETHUSD_20251212
["timestamp","ask_amount","ask_price","bid_price","bid_amount"]
[1765549613862,52.61800501,3232.2,3232.1,0.001]
[1765549614270,58.84930402,3232.2,3232.1,0.001]
[1765549614471,0.2246,3231.9,3231.4,0.001]
[1765549614680,40.5213743,3231.5,3231.4,0.001]
[1765549615058,11.0103743,3231.5,3231.4,0.001]
[1765549615254,41.13434053,3231.5,3231.4,0.001]
[1765549615658,44.28566353,3231.5,3231.4,0.001]
[1765549615855,44.84134899,3231.5,3231.4,0.001]
[1765549616061,50.49444113,3231.5,3231.4,0.001]
[1765549616382,48.86542213,3231.5,3231.4,0.001]
[1765549616559,33.2943,3231.3,3231.2,1e-08]
[1765549616757,31.03297529,3231.2,3231.1,1e-08]
[1765549616985,28.22974439,3231.2,3231.1,1e-08]
[1765549617146,31.56633639,3231.2,3231.1,0.49110001]
[1765549617347,24.89575439,3231.2,3231.1,0.49110001]
[1765549617580,24.64622539,3231.2,3231.1,0.49110001]
[1765549617880,24.64622539,3231.2,3231.1,1.14490001]
[1765549617881,11.80047929,3231.2,3231.1,1.14490001]
[1765549618084,14.89530474,3231.2,3231.1,1e-08]
[1765549618786,14.89087974,3231.2,3231.1,0.49110001]
[1765549619000,14.89087974,3231.2,3231.1,0.96320001]
[1765549619288,14.89087974,3231.2,3231.1,0.49110001]
[1765549619596,17.31257045,3231.2,3231.1,0.49110001]
[1765549619797,29.87754146,3231.2,3231.1,0.49110001]
[1765549620085,21.21136175,3231.2,3231.1,0.96320001]
[1765549620857,23.06440075,3231.2,3231.1,0.49110001]
[1765549621049,22.34240075,3231.2,3231.1,0.49110001]
[1765549621897,25.12487675,3231.2,3231.1,0.49110001]
[1765549622100,27.72483726,3231.2,3231.1,0.49110001]
[1765549622698,28.20323726,3231.2,3231.1,1e-08]
[1765549622990,28.69223726,3231.2,3231.1,1e-08]
[1765549623590,38.17653627,3231.2,3231.1,1e-08]
[1765549623752,21.1907993,3230.9,3230.8,0.001]
[1765549623951,26.79159929,3230.8,3230.7,1e-08]
[1765549624152,25.57902829,3230.8,3230.7,1e-08]
[1765549624356,0.489,3230.7,3229.9,0.57366529]
[1765549624583,0.489,3230.7,3228.9,0.003]
[1765549624584,46.77447331,3230.0,3228.9,0.003]
[1765549624803,43.12849802,3229.1,3228.9,0.003]
[1765549625091,44.19997331,3229.1,3228.9,0.003]
[1765549625290,44.19997331,3229.1,3227.3,0.1817]
[1765549625291,0.58047529,3228.4,3227.3,0.1817]
[1765549625455,0.58047529,3228.6,3228.1,0.0985]
[1765549625650,0.442,3228.4,3228.3,0.4941]
[1765549625855,0.12409353,3229.1,3228.3,0.9662]
[1765549626098,0.1875,3229.6,3229.0,0.4911]
[1765549626099,3.216362,3229.3,3229.0,0.4911]
[1765549626264,1.51074967,3229.6,3229.5,0.4911]
[1765549626598,15.40849397,3229.6,3229.5,0.4911]
[1765549626972,18.30608797,3229.6,3229.5,0.4911]
[1765549627155,17.61908797,3229.6,3229.5,0.4911]
[1765549627359,14.21335897,3229.6,3229.5,0.9632]
[1765549627558,0.492,3229.6,3229.5,0.9632]
[1765549628054,3.58835868,3229.6,3229.5,0.9632]
[1765549629502,0.492,3229.6,3229.5,0.9632]
[1765549629798,11.04399299,3230.6,3229.5,0.9632]
[1765549629955,2.60374,3230.4,3229.6,0.4721]
[1765549630156,1.26392169,3230.5,3229.6,0.4721]
[1765549630355,2.92074,3230.4,3229.6,0.4721]
[1765549630574,0.58047529,3230.2,3229.6,0.4721]
[1765549630778,0.492,3230.1,3229.6,0.4721]
[1765549631184,0.492,3230.1,3230.0,0.6728]
[1765549631484,3.09495375,3231.1,3230.0,0.6728]
[1765549631666,3.56508916,3230.9,3230.8,0.4911]
[1765549631866,3.58711612,3230.9,3230.8,0.4911]
[1765549632084,4.16759141,3230.9,3230.8,0.4911]
[1765549632259,7.26270753,3230.9,3230.5,0.4721]
[1765549632665,7.26270753,3230.9,3230.2,0.4721]
[1765549632873,0.0307978,3230.8,3230.2,0.4721]
[1765549633091,7.26270753,3230.9,3230.2,0.4721]
[1765549633439,1.03577477,3230.8,3230.2,0.4721]
[1765549633561,1.61625006,3230.8,3230.2,0.4721]
[1765549633893,9.338984,3230.5,3230.0,0.1817]
[1765549634202,0.492,3230.4,3230.1,0.4721]
[1765549634368,0.492,3230.3,3230.0,0.1817]
[1765549634568,0.58047529,3229.9,3229.7,0.4721]
[1765549634785,0.492,3229.8,3229.7,0.4721]
[1765549635090,0.492,3229.8,3229.7,0.9632]
[1765549636087,1.21844258,3229.8,3229.7,0.4911]
[1765549636595,4.89508481,3229.8,3229.7,0.4911]
[1765549636800,4.89508481,3229.8,3229.7,0.9632]
[1765549637582,0.58047529,3229.7,3229.2,0.6429]
[1765549638591,0.58047529,3229.7,3229.3,0.4612]
[1765549638799,0.58047529,3229.5,3229.3,0.4612]
[1765549639006,0.492,3229.4,3229.3,0.4612]
[1765549639362,0.492,3229.4,3229.3,0.9421]
[1765549641566,3.09646469,3229.5,3229.3,0.9421]
[1765549641866,3.58846469,3229.5,3229.4,0.9419]
[1765549642062,0.492,3230.1,3229.4,0.9419]
[1765549642298,0.492,3230.1,3230.0,0.451]
[1765549642503,0.492,3230.1,3229.2,0.1817]
[1765549642688,0.492,3230.1,3230.0,0.451]
[1765549642989,6.68375876,3230.1,3229.3,0.461]
[1765549643188,0.66837588,3230.0,3229.3,0.461]
[1765549643601,1.24885117,3230.0,3229.3,0.461]
[1765549644090,1.24885117,3230.0,3229.9,0.451]
[1765549644487,1.24885117,3230.0,3229.9,0.912]
[1765549644663,0.58047529,3230.0,3229.9,0.912]
[1765549644866,3.67645052,3230.0,3229.9,0.912]
[1765549645066,3.67645052,3230.0,3229.9,0.451]
[1765549645897,3.67645052,3230.0,3229.9,0.912]
[1765549647200,3.09597523,3230.0,3229.9,0.912]
[1765549648714,12.3793018,3231.2,3229.9,0.912]
[1765549648888,15.866824,3231.0,3230.0,0.912]
[1765549649090,0.58047529,3230.7,3230.0,0.912]
[1765549649291,0.492,3230.6,3230.1,0.6427]
[1765549649718,0.492,3230.6,3230.5,0.451]
[1765549650203,0.492,3230.6,3230.5,0.912]
[1765549650405,0.492,3230.6,3230.5,0.451]
[1765549650721,1.16024172,3230.6,3230.1,0.6427]
[1765549650891,1.16024172,3230.6,3230.2,0.461]
[1765549651094,6.1909921,3230.5,3230.2,0.461]
[1765549651525,3.09549605,3230.5,3230.4,0.451]
[1765549652007,3.58743399,3230.6,3230.4,0.912]
[1765549652211,3.58743399,3230.6,3230.5,0.451]
[1765549652415,3.58743399,3230.6,3230.5,0.912]
[1765549653318,3.58743399,3230.6,3230.5,0.451]
[1765549653520,4.56522953,3230.6,3230.5,0.451]
[1765549654802,3.58743399,3230.6,3230.5,0.451]
[1765549655010,3.58743399,3230.6,3230.5,0.912]
[1765549656020,3.58743399,3230.6,3230.5,0.451]
[1765549656406,10.24976821,3230.6,3230.1,0.1817]
[1765549656606,1.50027682,3230.5,3229.9,0.186]
[1765549656807,2.08075211,3230.5,3229.7,0.647]
[1765549657207,0.58047529,3230.3,3229.7,0.647]
[1765549657407,0.492,3230.2,3229.7,0.647]
[1765549657849,0.492,3230.2,3229.8,0.461]
[1765549658051,0.94736126,3230.2,3230.1,0.451]
[1765549658405,0.492,3230.2,3230.1,0.451]
[1765549658610,0.492,3230.2,3230.1,0.912]
[1765549660411,0.492,3230.2,3229.7,0.186]
[1765549660412,0.58047529,3230.1,3229.3,0.461]
[1765549661241,6.19195046,3230.0,3229.3,0.461]
[1765549661424,3.09597523,3230.0,3229.3,0.461]
[1765549661721,3.09597523,3230.0,3229.9,0.451]
[1765549662120,3.09597523,3230.0,3229.9,0.912]
[1765549662519,3.09597523,3230.0,3229.9,0.451]
[1765549662920,6.19195046,3230.0,3229.6,0.461]
[1765549663953,3.09597523,3230.0,3229.9,0.451]
[1765549664652,6.19195046,3230.0,3229.6,0.461]
[1765549665053,6.19195046,3230.0,3229.2,0.1817]
[1765549665054,6.19195046,3230.0,3229.3,0.461]
[1765549665359,10.01436827,3230.0,3229.3,0.461]
[1765549667056,6.00037729,3229.9,3229.1,0.1733]
[1765549667248,0.492,3229.8,3229.1,0.1733]
[1765549667439,0.492,3229.8,3229.1,0.6343]
[1765549667736,0.58047529,3229.9,3229.7,0.451]
[1765549667953,0.58047529,3229.9,3229.8,0.451]
[1765549668137,1.07247529,3229.9,3229.8,0.451]
[1765549668339,1.53537529,3229.9,3229.2,0.461]
[1765549668545,1.46457188,3229.8,3229.1,0.1733]
[1765549669156,9.28878843,3229.7,3229.1,0.1733]
[1765549671850,9.28878843,3229.7,3229.2,0.4818]
[1765549674870,0.4646,3229.6,3228.8,0.4818]
[1765549675052,0.5272538,3229.6,3228.8,0.4818]
[1765549675656,0.0307978,3229.5,3228.8,0.4818]
[1765549675855,0.492,3229.4,3228.8,0.4818]
[1765549676149,9.28993899,3229.3,3228.6,0.4818]
[1765549676351,0.72644258,3229.2,3228.4,0.6678]
[1765549676667,1.77151787,3229.2,3228.4,0.6678]
[1765549678071,3.0975096,3228.4,3228.3,0.003]
[1765549678384,4.0747096,3228.4,3228.3,0.003]
[1765549679592,3.5895096,3228.4,3228.3,0.9823]
[1765549680374,0.58047529,3229.4,3228.3,0.9823]
[1765549680568,1.47898389,3229.3,3228.5,0.4975]
[1765549680990,0.492,3229.3,3229.2,0.4975]
[1765549681396,1.4334,3229.3,3228.3,0.4848]
[1765549681899,7.78870127,3229.0,3228.3,0.003]
[1765549682103,0.492,3228.9,3228.4,0.4818]
[1765549682324,3.67798489,3228.4,3228.3,0.003]
[1765549682500,4.84752466,3228.4,3228.3,0.003]
[1765549682805,4.16998489,3228.4,3228.3,0.9823]
[1765549682975,4.16998489,3228.4,3228.3,0.5005]
[1765549683301,4.16998489,3228.4,3228.3,0.003]
[1765549683500,4.65868489,3228.4,3228.3,0.003]
[1765549683876,5.11158489,3228.4,3228.3,0.003]
[1765549684195,7.0210959,3228.4,3228.3,0.003]
[1765549685003,23.7537559,3228.4,3228.3,0.003]
[1765549685202,12.2838949,3228.4,3228.3,0.003]
[1765549686114,13.2969909,3228.4,3228.3,0.003]
[1765549687091,15.4293929,3228.4,3228.3,0.003]
[1765549687291,13.4472649,3228.4,3228.3,0.003]
[1765549687807,8.6294909,3228.4,3228.3,0.003]
[1765549688010,16.9629829,3228.4,3228.3,0.003]
[1765549688892,15.2298219,3228.4,3228.3,0.003]
[1765549689393,23.01852317,3228.4,3228.3,0.003]
[1765549690023,32.15344817,3228.4,3228.3,0.003]
[1765549690448,35.40644817,3228.4,3228.3,0.003]
[1765549690785,32.15344817,3228.4,3228.3,0.003]
[1765549691018,32.15344817,3228.4,3227.8,0.001]
[1765549691019,15.964406,3228.2,3227.8,0.001]
[1765549691227,9.03627656,3227.9,3227.8,0.001]
[1765549691387,1.07347529,3227.9,3227.8,0.001]
[1765549691589,1.07347529,3227.9,3227.8,0.9803]
[1765549691590,0.493,3227.9,3227.8,0.9803]
[1765549691915,3.09729783,3228.7,3227.8,0.9803]
[1765549692116,0.493,3228.6,3228.3,0.1931]
[1765549692527,0.493,3228.6,3228.5,0.4975]
[1765549692687,3.59031772,3228.6,3228.5,0.4975]
[1765549692892,0.493,3228.6,3228.5,0.9793]
[1765549693193,3.59031772,3228.6,3228.5,0.9793]
[1765549694439,0.58047529,3229.3,3228.5,0.9793]
[1765549694603,3.904957,3229.8,3229.2,0.6906]
[1765549694801,0.1959,3229.9,3229.2,0.6906]
[1765549694802,0.9030857,3229.7,3229.3,0.4975]
[1765549695032,0.4887,3229.3,3228.3,0.1931]
[1765549695222,0.493,3229.2,3228.4,0.4818]
[1765549695927,7.78870127,3229.1,3228.4,0.4818]
[1765549696119,7.78870127,3229.1,3228.3,0.1931]
[1765549696120,0.61127309,3229.0,3228.3,0.1931]
[1765549696432,6.19463544,3228.6,3228.1,0.1931]
[1765549696627,6.68763544,3228.6,3228.1,0.1931]
[1765549696933,6.68763544,3228.6,3227.5,0.001]
[1765549696934,10.24955316,3228.6,3227.8,0.1941]
[1765549697134,4.63539301,3228.6,3228.5,0.4975]
[1765549698134,4.63539301,3228.6,3228.2,0.4643]
[1765549698432,4.63539301,3228.6,3228.5,0.4918]
[1765549699112,4.17079301,3228.6,3228.5,0.9561]
[1765549699310,8.20401073,3228.6,3227.8,0.1941]
[1765549699520,7.78870127,3228.2,3227.8,0.1941]
[1765549699718,0.493,3228.1,3227.8,0.001]
[1765549700611,3.09789343,3228.0,3227.8,0.4653]
[1765549701027,3.09789343,3228.0,3227.9,0.4918]
[1765549701232,3.09789343,3228.0,3227.9,0.9561]
[1765549701738,0.493,3228.1,3227.9,0.9561]
[1765549702044,3.09616694,3229.8,3228.0,0.9382]
[1765549702220,0.9157537,3229.7,3228.8,0.0591]
[1765549702612,0.9157537,3229.7,3228.8,0.5104]
[1765549702613,0.58047529,3229.5,3228.8,0.5104]
[1765549704626,3.09655044,3229.4,3228.8,0.5104]
[1765549704848,3.09655044,3229.4,3228.8,0.87115931]
[1765549705030,3.09655044,3229.4,3229.3,0.6766]
[1765549705330,3.0963603,3229.6,3229.3,0.6766]
[1765549705542,3.0963603,3229.6,3229.4,0.4513]
[1765549705859,3.0963603,3229.6,3229.5,0.4869]
[1765549706359,3.0963603,3229.6,3229.5,0.9382]
[1765549707233,0.4559,3230.7,3229.5,0.9382]
[1765549707433,0.4559,3230.7,3229.3,0.1897]
[1765549707434,7.78870127,3230.5,3229.3,0.1897]
[1765549707625,2.37114307,3230.4,3229.3,0.1897]
[1765549707826,2.82704307,3230.4,3229.3,0.1897]
[1765549708135,0.4559,3230.3,3229.3,0.1897]
[1765549708333,0.58047529,3230.0,3229.3,0.1897]
[1765549708762,0.1956,3229.9,3229.3,0.1897]
[1765549708939,0.493,3229.8,3229.3,0.1897]
[1765549709352,6.19252562,3229.7,3229.3,0.1897]
[1765549709578,9.28878843,3229.7,3229.3,0.1897]
[1765549709743,0.4559,3229.6,3228.8,0.0591]
[1765549710049,7.1509239,3229.7,3228.9,0.4513]
[1765549710248,7.1509239,3229.7,3229.5,0.4869]
[1765549710451,0.76439239,3229.6,3229.5,0.4869]
[1765549711271,3.86075107,3229.6,3229.5,0.4869]
[1765549712369,7.43510975,3229.6,3229.1,0.4513]
[1765549712540,7.43510975,3229.6,3228.8,0.5104]
[1765549712736,6.95710975,3229.6,3228.8,0.5104]
[1765549713164,3.09635868,3229.6,3229.5,0.4869]
[1765549713472,3.58926199,3229.8,3229.5,0.4869]
[1765549713473,3.09626281,3229.7,3229.5,0.4869]
[1765549713843,3.09626281,3229.7,3229.2,0.4513]
[1765549713844,3.09626281,3229.7,3229.6,0.4869]
[1765549715753,6.19252562,3229.7,3229.2,0.4513]
[1765549718191,6.19252562,3229.7,3228.8,3.51694591]
[1765549718496,6.19252562,3229.7,3229.0,0.4513]
[1765549718795,3.09626281,3229.7,3229.6,0.4869]
[1765549718991,6.19252562,3229.7,3228.8,0.0591]
[1765549719288,6.19252562,3229.7,3228.8,0.5104]
[1765549719492,6.19252562,3229.7,3228.8,3.607509]
[1765549719930,6.19252562,3229.7,3228.9,0.4513]
[1765549720285,3.09626281,3229.7,3229.6,0.4869]
[1765549720494,3.09626281,3229.7,3228.9,0.4513]
[1765549720495,6.19252562,3229.7,3228.9,0.4513]
[1765549720810,6.19252562,3229.7,3229.0,0.4513]
[1765549725908,9.28878843,3229.7,3229.0,0.4513]
[1765549726290,3.09626281,3229.7,3229.6,0.4869]
[1765549726489,4.07442057,3229.7,3229.6,0.4869]
[1765549727320,3.09626281,3229.7,3229.6,0.4869]
[1765549728442,3.09626281,3229.7,3229.6,0.9382]
[1765549728731,3.09626281,3229.7,3229.6,0.4869]
[1765549728938,6.19252562,3229.7,3229.2,0.4513]
[1765549729116,6.19252562,3229.7,3228.9,0.4513]
[1765549729430,3.09626281,3229.7,3229.6,0.4869]
[1765549729632,6.19252562,3229.7,3228.9,0.81205915]
[1765549729799,6.19252562,3229.7,3228.9,0.4513]
[1765549729998,6.19252562,3229.7,3229.0,0.4513]
[1765549732837,3.09626281,3229.7,3229.6,0.476]
[1765549735252,6.64902562,3229.7,3228.8,3.61884034]
[1765549735405,6.64902562,3229.7,3228.9,0.4627]
[1765549736419,6.64902562,3229.7,3228.8,3.15620544]
[1765549736640,6.64902562,3229.7,3228.8,3.83085548]
[1765549737744,3.09626281,3229.7,3229.6,0.476]
[1765549738617,7.16712562,3229.7,3228.9,0.4627]
[1765549740145,7.16712562,3229.7,3228.5,0.1537]
[1765549740146,0.1852,3229.0,3228.5,0.1537]
[1765549740438,0.492,3229.4,3228.5,0.1537]
[1765549740812,0.58047529,3229.2,3228.5,0.1537]
[1765549741540,2.15219672,3229.2,3228.5,0.1537]
[1765549742409,0.4868,3229.1,3228.3,0.1537]
[1765549742634,0.492,3229.0,3227.9,0.4627]
[1765549742943,9.29108982,3228.9,3227.9,0.4627]
[1765549743133,0.97830898,3228.8,3227.9,0.4627]
[1765549743438,1.46510898,3228.8,3227.8,0.001]
[1765549743606,1.46510898,3228.8,3227.8,0.4637]
[1765549744116,0.4868,3228.7,3227.8,0.4637]
[1765549744421,3.09702994,3228.9,3228.7,0.6297]
[1765549744742,3.09702994,3228.9,3228.8,0.476]
[1765549745414,3.58897542,3229.0,3228.8,0.9387]
[1765549745640,3.58897542,3229.0,3228.9,0.476]
[1765549745846,0.492,3229.0,3228.9,0.476]
[1765549746018,3.0968107,3229.2,3228.9,0.9387]
[1765549746242,3.0968107,3229.2,3229.1,0.476]
[1765549746928,3.09664633,3229.3,3229.1,0.476]
[1765549748052,0.9746,3229.2,3228.3,0.4627]
[1765549748256,0.1943,3229.0,3228.3,0.4627]
[1765549748931,6.19405988,3228.9,3228.3,0.4627]
[1765549749328,6.38045988,3228.9,3228.1,0.1537]
[1765549749647,0.4868,3228.8,3228.1,0.1537]
[1765549750430,1.53242898,3228.8,3228.1,0.1537]
[1765549750832,3.09722179,3228.7,3228.1,0.6164]
[1765549751046,3.09722179,3228.7,3228.1,3.71419437]
[1765549751340,3.09722179,3228.7,3228.6,0.476]
[1765549751944,3.09722179,3228.7,3227.8,0.001]
[1765549751945,0.58047529,3228.6,3227.8,0.001]
[1765549752142,0.58047529,3228.6,3227.8,0.4637]
[1765549752143,1.57667407,3228.5,3227.8,0.4637]
[1765549752456,0.492,3228.5,3227.8,0.4637]
[1765549752829,6.1950192,3228.4,3227.8,0.4637]
[1765549753035,6.77549449,3228.4,3227.8,0.4637]
[1765549753235,9.87300409,3228.4,3227.8,0.001]
[1765549753557,10.35980409,3228.4,3227.8,0.001]
[1765549753765,11.75472269,3228.4,3227.8,0.001]
[1765549753970,0.6742,3227.9,3227.8,0.001]
[1765549754269,0.493,3228.0,3227.8,0.001]
[1765549754569,0.493,3228.0,3227.8,0.477]
[1765549755071,3.59089343,3228.0,3227.9,0.476]
[1765549756063,3.59089343,3228.0,3227.8,0.001]
[1765549757442,0.4878,3227.9,3227.8,0.001]
[1765549757841,0.9746,3227.9,3227.8,0.001]
[1765549758442,2.05072781,3227.9,3227.8,0.001]
[1765549759175,4.17411721,3227.9,3227.8,0.001]
[1765549759372,3.0979894,3227.9,3227.8,0.001]
[1765549759577,3.0979894,3227.9,3227.8,0.477]
[1765549759746,4.65306469,3227.9,3227.8,0.001]
[1765549762187,4.63436469,3227.9,3227.8,0.001]
[1765549762382,43.6018644,3227.9,3227.8,0.001]
[1765549762551,43.72596871,3227.9,3227.8,0.001]
[1765549762883,40.28271871,3227.9,3227.8,0.001]
[1765549763288,43.72596871,3227.9,3227.8,0.001]
[1765549763597,30.0,3227.1,3227.0,0.001]
[1765549763881,39.68784919,3227.1,3227.0,0.001]
[1765549764182,40.15594919,3227.1,3227.0,0.001]
[1765549764358,36.32630658,3227.1,3227.0,0.001]
[1765549764558,35.17088458,3227.1,3227.0,0.001]
[1765549765253,43.84199997,3227.1,3227.0,0.001]
[1765549766050,9.08052488,3227.1,3227.0,0.001]
[1765549766252,17.60565249,3227.1,3227.0,0.001]
[1765549767086,17.28282849,3227.1,3227.0,0.001]
[1765549767384,19.58692949,3227.1,3227.0,0.001]
[1765549768480,29.74275349,3227.1,3227.0,0.001]
[1765549768979,13.32562049,3227.1,3227.0,0.001]
[1765549769375,22.17003749,3227.1,3227.0,0.001]
[1765549770482,14.88659349,3227.1,3227.0,0.001]
[1765549770683,13.98515149,3227.1,3227.0,0.001]
[1765549771184,12.4435762,3227.1,3227.0,0.001]
[1765549771383,4.06115739,3227.1,3227.0,0.001]
[1765549771682,3.59175739,3227.1,3227.0,0.4546]
[1765549772080,4.17223268,3227.1,3227.0,0.4546]
[1765549772478,3.59175739,3227.1,3227.0,0.9205]
[1765549773977,3.09831487,3227.6,3227.0,0.9205]
[1765549773978,3.09869563,3227.2,3227.0,0.9205]
[1765549774289,6.19696832,3227.4,3227.1,0.6575]
[1765549774486,3.09848416,3227.4,3227.3,0.4536]
[1765549774888,3.09848416,3227.4,3227.3,0.9195]
[1765549775389,0.58047529,3227.6,3227.3,0.9195]
[1765549775593,0.58047529,3227.6,3227.5,0.4536]
[1765549775885,6.19636272,3227.7,3227.5,0.4536]
[1765549778468,3.09818136,3227.7,3227.6,0.4536]
[1765549781898,6.66576272,3227.7,3227.1,0.1916]
[1765549782195,6.19636272,3227.7,3227.0,0.001]
[1765549782368,6.19636272,3227.7,3227.0,0.31109965]
[1765549782695,6.19636272,3227.7,3227.0,0.001]
[1765549784100,3.09818136,3227.7,3227.0,0.001]
[1765549784276,6.19636272,3227.7,3227.0,0.001]
[1765549788904,0.58047529,3227.6,3227.0,0.001]
[1765549790704,0.58047529,3227.4,3227.0,0.001]
[1765549791200,0.493,3227.3,3227.0,0.001]
[1765549792809,3.59161551,3227.3,3227.0,0.001]
[1765549794310,6.19723102,3227.3,3227.0,0.001]
[1765549794807,3.09841689,3227.5,3227.0,0.001]
[1765549795379,6.1965547,3227.6,3227.0,0.001]
[1765549795579,0.97877642,3227.5,3227.0,0.001]
[1765549796809,6.1969387,3227.4,3227.0,0.001]
[1765549797511,9.29540805,3227.4,3227.0,0.001]
[1765549797715,0.493,3227.3,3227.0,0.001]
[1765549797883,1.07347529,3227.3,3227.0,0.001]
[1765549798086,1.03688833,3227.2,3227.0,0.001]
[1765549798990,3.09875739,3227.1,3227.0,0.001]
[1765549800618,3.67923268,3227.1,3227.0,0.001]
[1765549801039,9.29627217,3227.1,3226.7,0.43929339]
[1765549801331,10.145977,3227.0,3226.7,0.43929339]
[1765549801490,0.58047529,3227.5,3226.7,0.43929339]
[1765549801694,0.493,3227.5,3226.7,0.43929339]
[1765549801904,6.24852868,3227.0,3226.7,0.43929339]
[1765549802240,0.493,3226.9,3226.7,0.43929339]
[1765549803105,3.5919802,3226.9,3226.7,0.43929339]
[1765549804205,1.60383246,3226.8,3226.7,0.43929339]
[1765549804702,18.59661575,3226.8,3226.7,0.43929339]
[1765549805093,21.69566124,3226.8,3226.7,0.43929339]
[1765549805726,35.28335324,3226.8,3226.7,0.43929339]
[1765549806101,35.28335324,3226.8,3226.1,0.003]
[1765549806102,0.63047529,3226.6,3226.1,0.003]
[1765549806331,12.42812368,3226.2,3226.1,0.003]
[1765549806652,9.29148297,3226.2,3226.1,0.003]
[1765549807048,12.39110481,3226.2,3226.1,0.003]
[1765549807359,0.58047529,3226.0,3225.4,0.001]
[1765549807564,23.18120397,3225.8,3225.4,0.001]
[1765549807850,22.62611597,3225.8,3225.4,0.001]
[1765549808024,0.494,3225.9,3225.4,0.001]
[1765549808221,4.74700829,3225.8,3225.4,0.001]
[1765549808434,3.76203229,3225.8,3225.4,0.001]
[1765549808649,12.13865929,3225.8,3225.4,0.001]
[1765549808830,11.22746329,3225.8,3225.4,0.001]
[1765549809030,11.05948649,3225.8,3225.4,0.001]
[1765549809337,8.02304749,3225.8,3225.4,0.001]
[1765549809538,3.1000062,3225.8,3225.4,0.001]
[1765549809726,5.3958942,3225.8,3225.4,0.001]
[1765549810222,27.2253352,3225.8,3225.4,0.001]
[1765549810419,27.33303649,3225.8,3225.4,0.001]
[1765549810659,30.0,3225.6,3224.0,0.05]
[1765549810846,30.0,3224.0,3223.8,1e-08]
[1765549811021,3.10212185,3223.6,3223.5,0.60692149]
[1765549811353,0.58047529,3223.3,3220.8,3.71171403]
[1765549811551,30.0,3222.7,3220.8,3.71171403]
[1765549811765,30.0,3222.5,3220.9,0.58047529]
[1765549811920,0.496,3223.1,3221.3,0.58047529]
[1765549812121,0.496,3223.1,3220.8,13.02617004]
[1765549812122,0.496,3223.1,3221.4,0.0310424]
[1765549812342,0.496,3223.1,3221.0,0.42921893]
[1765549812624,28.918084,3223.0,3221.0,1.36135188]
[1765549813132,3.10279561,3222.9,3221.2,0.58047529]
[1765549813337,18.680295,3222.9,3221.1,3.1045295]
[1765549813654,18.680295,3222.9,3221.2,0.58047529]
[1765549813892,1.47915778,3222.8,3221.3,0.67895343]
[1765549814176,8.3024277,3223.1,3220.9,4.03680258]
[1765549814177,0.497,3222.7,3220.9,0.93216191]
[1765549814484,0.498,3222.6,3221.0,6.20925178]
[1765549814774,0.498,3222.6,3221.1,0.58047529]
[1765549815190,3.10327706,3222.4,3220.5,3.10508818]
[1765549815484,7.8064277,3221.8,3220.0,0.93216191]
[1765549815682,7.8064277,3220.6,3220.0,0.93216191]
[1765549815985,22.34792069,3222.4,3217.5,0.03108003]
[1765549815986,0.58047529,3220.3,3217.5,0.03108003]
[1765549816192,7.8064277,3219.6,3218.2,0.93285757]
[1765549816490,3.518811,3219.4,3217.3,3.10818622]
[1765549816652,0.5,3219.3,3218.1,3.10742363]
[1765549816983,4.197394,3220.3,3218.0,9.32254841]
[1765549817147,0.501,3220.2,3218.4,17.12782961]
[1765549817349,0.501,3220.1,3218.5,2.38580657]
[1765549817550,0.93297071,3220.8,3219.0,0.58047529]
[1765549817778,5.83920567,3221.6,3219.5,0.58047529]
[1765549817984,5.882483,3221.4,3219.5,0.58047529]
[1765549818285,0.05,3220.5,3218.5,1.80533128]
[1765549818463,0.405504,3220.3,3218.6,0.92548318]
[1765549818661,0.405504,3220.1,3218.4,6.21426794]
[1765549818852,0.405504,3219.7,3218.5,0.58047529]
[1765549819056,0.405504,3219.9,3217.9,10.91396381]
[1765549819257,4.62399,3219.1,3217.1,0.64617769]
[1765549819455,0.502,3219.0,3218.0,3.10750666]
[1765549819759,0.502,3219.4,3218.1,0.58047529]
[1765549819952,5.951401,3220.4,3218.5,0.58047529]
[1765549820153,0.502,3220.7,3219.0,0.58047529]
[1765549820364,2.809156,3220.6,3219.1,0.8386903]
[1765549820560,0.502,3220.7,3219.0,0.58047529]
[1765549820764,3.10326304,3222.5,3219.0,0.58047529]
[1765549820765,6.20462864,3223.4,3220.4,7.8064277]
[1765549820963,14.813526,3223.2,3221.0,0.58047529]
[1765549821257,0.93219667,3223.3,3222.0,7.8064277]
[1765549821483,0.503,3224.3,3222.5,7.8064277]
[1765549821679,6.269362,3224.2,3222.1,7.8064277]
[1765549821892,11.937804,3224.0,3221.4,7.81197725]
[1765549822100,10.552756,3223.7,3221.5,0.503]
[1765549822301,9.30203712,3225.1,3222.1,7.81197725]
[1765549822611,2.739188,3224.9,3222.2,0.41594133]
[1765549822812,0.503,3225.0,3222.6,7.81197725]
[1765549823015,0.503,3225.0,3221.5,7.81197725]
[1765549823016,18.68086725,3224.8,3221.5,7.81197725]
[1765549823311,9.303768,3224.5,3222.1,0.58047529]
[1765549823480,11.091989,3224.3,3221.8,0.58047529]
[1765549823687,25.957773,3224.1,3221.8,1.08347529]
[1765549823948,7.644967,3223.9,3221.8,1.08347529]
[1765549824086,5.966083,3223.7,3221.9,0.503]
[1765549824287,5.377983,3223.5,3222.0,0.58047529]
[1765549824581,1.1499083,3223.6,3222.0,0.58047529]
[1765549824791,0.0307978,3223.5,3222.1,0.503]
[1765549825006,0.503,3223.6,3222.1,0.503]
[1765549825210,6.20328152,3224.1,3222.6,3.10308446]
[1765549825516,3.10164076,3224.1,3222.7,0.503]
[1765549825683,6.20328152,3224.1,3222.7,0.503]
[1765549825887,11.294557,3223.9,3222.4,0.58047529]
[1765549826205,10.804989,3223.9,3222.5,3.6835916]
[1765549826389,10.401557,3223.9,3222.5,3.6835916]